[Event "Early-Titled-Tuesday-Blitz-July-09-2024"]
[Site "Chess.com"]
[Date "2024.07.09"]
[Round "11"]
[White "Noki102"]
[Black "jaskol95"]
[Result "1-0"]
[WhiteElo "2553"]
[BlackElo "2641"]
[TimeControl "180+1"]
[EndTime "10:05:43 PDT"]
[Termination "Noki102 won by resignation"]

1. Nc3 {[%clk 0:03:00.9]} 1... d5 {[%clk 0:03:00.9]} 2. d4 {[%clk 0:02:59.9]}
2... Nf6 {[%clk 0:02:58.7]} 3. Bf4 {[%clk 0:03:00.2]} 3... c5 {[%clk 0:02:55.1]}
4. e4 {[%clk 0:02:59.5]} 4... cxd4 {[%clk 0:02:51.8]} 5. Qxd4 {[%clk 0:03:00.4]}
5... Nc6 {[%clk 0:02:52.4]} 6. Bb5 {[%clk 0:03:00.6]} 6... Bd7 {[%clk
0:02:42.6]} 7. Bxc6 {[%clk 0:03:00.7]} 7... Bxc6 {[%clk 0:02:39.9]} 8. e5 {[%clk
0:03:01.3]} 8... Nd7 {[%clk 0:02:39.7]} 9. e6 {[%clk 0:03:01.9]} 9... fxe6
{[%clk 0:02:38.2]} 10. Nf3 {[%clk 0:03:02.3]} 10... Qb6 {[%clk 0:02:27.1]} 11.
Qd2 {[%clk 0:02:57]} 11... d4 {[%clk 0:02:16.9]} 12. Qxd4 {[%clk 0:02:56.6]}
12... Qxd4 {[%clk 0:02:11.9]} 13. Nxd4 {[%clk 0:02:56.1]} 13... e5 {[%clk
0:02:12.5]} 14. Nxc6 {[%clk 0:02:47]} 14... exf4 {[%clk 0:02:13]} 15. Nd4 {[%clk
0:02:43.6]} 15... e5 {[%clk 0:02:12.5]} 16. Ne6 {[%clk 0:02:41.7]} 16... Kf7
{[%clk 0:02:08.1]} 17. Nxf8 {[%clk 0:02:40.6]} 17... Rhxf8 {[%clk 0:02:07.9]}
18. O-O-O {[%clk 0:02:40]} 18... Rfd8 {[%clk 0:02:02.7]} 19. Rhe1 {[%clk
0:02:38.8]} 19... Rac8 {[%clk 0:01:43.5]} 20. Ne4 {[%clk 0:02:29.4]} 20... Rc6
{[%clk 0:01:29.1]} 21. Nd6+ {[%clk 0:02:23.4]} 21... Ke6 {[%clk 0:01:28.3]} 22.
Nxb7 {[%clk 0:02:21]} 22... Rb8 {[%clk 0:01:11.1]} 23. Na5 {[%clk 0:02:19.9]}
23... Ra6 {[%clk 0:01:08.8]} 24. Nb3 {[%clk 0:02:08.6]} 24... Rxa2 {[%clk
0:01:08.8]} 25. Kb1 {[%clk 0:02:09.2]} 25... Ra6 {[%clk 0:00:59.7]} 26. Rxd7
{[%clk 0:02:04.1]} 26... Rxb3 {[%clk 0:01:00]} 27. Rxg7 {[%clk 0:01:58.8]} 27...
Rb5 {[%clk 0:00:51.4]} 28. Rxh7 {[%clk 0:01:54.1]} 28... Kf5 {[%clk 0:00:52]}
29. Rh5+ {[%clk 0:01:50]} 29... Kg4 {[%clk 0:00:39.9]} 30. Rexe5 {[%clk
0:01:45.7]} 30... Rxe5 {[%clk 0:00:39.3]} 31. Rxe5 {[%clk 0:01:45.7]} 31... f3
{[%clk 0:00:38.3]} 32. Re4+ {[%clk 0:01:44.1]} 32... Kf5 {[%clk 0:00:38.6]} 33.
gxf3 {[%clk 0:01:44.2]} 33... Rh6 {[%clk 0:00:39]} 34. Ra4 {[%clk 0:01:42.5]}
34... Rxh2 {[%clk 0:00:37.8]} 35. Rxa7 {[%clk 0:01:42.1]} 35... Rxf2 {[%clk
0:00:38.5]} 36. Rd7 {[%clk 0:01:41.8]} 36... Ke6 {[%clk 0:00:38.6]} 37. Rd3
{[%clk 0:01:41.3]} 37... Ke5 {[%clk 0:00:36.7]} 38. b4 {[%clk 0:01:41.7]} 38...
Rh2 {[%clk 0:00:36]} 39. Kb2 {[%clk 0:01:42]} 39... Kf4 {[%clk 0:00:33.8]} 40.
Kc3 {[%clk 0:01:40.7]} 40... Rh1 {[%clk 0:00:32.5]} 41. b5 {[%clk 0:01:39.9]}
41... Rb1 {[%clk 0:00:33]} 42. Kc4 {[%clk 0:01:40.4]} 42... Ke5 {[%clk
0:00:33.5]} 43. Kc5 {[%clk 0:01:39.9]} 43... Rc1 {[%clk 0:00:33.5]} 44. c4
{[%clk 0:01:40.2]} 44... Ke6 {[%clk 0:00:32.3]} 45. b6 {[%clk 0:01:39.3]} 45...
Rc2 {[%clk 0:00:33.1]} 46. Kb5 {[%clk 0:01:37.5]} 46... Rb2+ {[%clk 0:00:33.5]}
47. Kc6 {[%clk 0:01:37.6]} 47... Ke7 {[%clk 0:00:33.4]} 48. c5 {[%clk
0:01:37.6]} 48... Rb1 {[%clk 0:00:33.6]} 49. b7 {[%clk 0:01:36.3]} 49... Rb3
{[%clk 0:00:33.8]} 50. Rxb3 {[%clk 0:01:35.1]} 50... Ke6 {[%clk 0:00:33.6]} 51.
b8=Q {[%clk 0:01:34.6]} 1-0

[Event "Early-Titled-Tuesday-Blitz-July-09-2024"]
[Site "Chess.com"]
[Date "2024.07.09"]
[Round "11"]
[White "AsaHoffmann"]
[Black "Szachulec75"]
[Result "1/2-1/2"]
[WhiteElo "2394"]
[BlackElo "2259"]
[TimeControl "180+1"]
[EndTime "10:05:44 PDT"]
[Termination "Game drawn by repetition"]

1. d4 {[%clk 0:02:49.4]} 1... Nf6 {[%clk 0:02:59]} 2. Bg5 {[%clk 0:02:48.7]}
2... e6 {[%clk 0:02:57.3]} 3. Nd2 {[%clk 0:02:48.1]} 3... Be7 {[%clk 0:02:57.7]}
4. e3 {[%clk 0:02:48]} 4... b6 {[%clk 0:02:55.9]} 5. Bd3 {[%clk 0:02:47.6]} 5...
Bb7 {[%clk 0:02:56.1]} 6. Ngf3 {[%clk 0:02:47.4]} 6... h6 {[%clk 0:02:56.6]} 7.
Bh4 {[%clk 0:02:47.1]} 7... O-O {[%clk 0:02:56.7]} 8. O-O {[%clk 0:02:46.8]}
8... c5 {[%clk 0:02:55.8]} 9. c3 {[%clk 0:02:46.7]} 9... Nc6 {[%clk 0:02:53.9]}
10. Qe2 {[%clk 0:02:46.7]} 10... d6 {[%clk 0:02:53.7]} 11. h3 {[%clk 0:02:46.7]}
11... e5 {[%clk 0:02:51.3]} 12. dxe5 {[%clk 0:02:44.1]} 12... dxe5 {[%clk
0:02:51.1]} 13. Bg3 {[%clk 0:02:42.9]} 13... Bd6 {[%clk 0:02:44.3]} 14. e4
{[%clk 0:02:40.4]} 14... Nh5 {[%clk 0:02:37.1]} 15. Bh2 {[%clk 0:02:36.8]} 15...
Nf4 {[%clk 0:02:37.6]} 16. Bxf4 {[%clk 0:02:35.4]} 16... exf4 {[%clk 0:02:38.2]}
17. Nc4 {[%clk 0:02:35.3]} 17... Re8 {[%clk 0:02:34.6]} 18. Rad1 {[%clk
0:02:32.7]} 18... Qe7 {[%clk 0:02:29.1]} 19. Nxd6 {[%clk 0:02:30.9]} 19... Qxd6
{[%clk 0:02:28.1]} 20. e5 {[%clk 0:02:30.3]} 20... Qe7 {[%clk 0:02:25.9]} 21.
Rfe1 {[%clk 0:02:29.1]} 21... Rad8 {[%clk 0:02:21]} 22. Qe4 {[%clk 0:02:28.4]}
22... g6 {[%clk 0:02:06.1]} 23. Qxf4 {[%clk 0:02:24.5]} 23... Kg7 {[%clk
0:02:01.4]} 24. Qg3 {[%clk 0:02:17]} 24... Qe6 {[%clk 0:01:51.5]} 25. b3 {[%clk
0:02:12.2]} 25... Ne7 {[%clk 0:01:44.9]} 26. Bc4 {[%clk 0:02:07.7]} 26... Qf5
{[%clk 0:01:42.4]} 27. Rd6 {[%clk 0:02:01.8]} 27... Bxf3 {[%clk 0:01:29.6]} 28.
Qxf3 {[%clk 0:01:51.3]} 28... Qxf3 {[%clk 0:01:28.3]} 29. gxf3 {[%clk
0:01:51.2]} 29... Nf5 {[%clk 0:01:25.3]} 30. Rxd8 {[%clk 0:01:45]} 30... Rxd8
{[%clk 0:01:24.4]} 31. e6 {[%clk 0:01:36.2]} 31... fxe6 {[%clk 0:01:23.7]} 32.
Bxe6 {[%clk 0:01:28.7]} 32... Kf6 {[%clk 0:01:23.7]} 33. Bxf5 {[%clk 0:01:28.2]}
33... gxf5 {[%clk 0:01:23]} 34. f4 {[%clk 0:01:22.6]} 34... Rd2 {[%clk
0:01:21.5]} 35. Ra1 {[%clk 0:01:02.5]} 35... Rd3 {[%clk 0:01:20.4]} 36. Kg2
{[%clk 0:01:02.3]} 36... Rxc3 {[%clk 0:01:19.9]} 37. Rd1 {[%clk 0:00:58.5]}
37... Ke6 {[%clk 0:01:18.8]} 38. Re1+ {[%clk 0:00:58]} 38... Kd6 {[%clk
0:01:15.2]} 39. Rd1+ {[%clk 0:00:57.4]} 39... Kc6 {[%clk 0:01:13.2]} 40. Re1
{[%clk 0:00:54.5]} 40... Rd3 {[%clk 0:01:01.7]} 41. Re6+ {[%clk 0:00:51.7]}
41... Rd6 {[%clk 0:01:01.5]} 42. Re5 {[%clk 0:00:51.7]} 42... Rd5 {[%clk
0:01:02]} 43. Re6+ {[%clk 0:00:51.9]} 43... Rd6 {[%clk 0:01:01.7]} 44. Re5
{[%clk 0:00:52]} 44... Rd5 {[%clk 0:01:02.3]} 45. Re6+ {[%clk 0:00:52.1]} 45...
Rd6 {[%clk 0:01:02.9]} 1/2-1/2

[Event "Early-Titled-Tuesday-Blitz-July-09-2024"]
[Site "Chess.com"]
[Date "2024.07.09"]
[Round "11"]
[White "dretch"]
[Black "TigrVShlyape"]
[Result "0-1"]
[WhiteElo "2873"]
[BlackElo "2974"]
[TimeControl "180+1"]
[EndTime "10:05:47 PDT"]
[Termination "TigrVShlyape won on time"]

1. d4 {[%clk 0:03:00.9]} 1... Nf6 {[%clk 0:02:56.4]} 2. c4 {[%clk 0:03:00.3]}
2... e6 {[%clk 0:02:56.9]} 3. Nf3 {[%clk 0:02:59.6]} 3... d5 {[%clk 0:02:56]} 4.
Nc3 {[%clk 0:02:58.4]} 4... c6 {[%clk 0:02:56.5]} 5. Bg5 {[%clk 0:02:56.7]} 5...
Nbd7 {[%clk 0:02:56.4]} 6. cxd5 {[%clk 0:02:54.8]} 6... exd5 {[%clk 0:02:55.6]}
7. e3 {[%clk 0:02:32.4]} 7... Be7 {[%clk 0:02:52.5]} 8. Qc2 {[%clk 0:02:31.5]}
8... Nf8 {[%clk 0:02:48.4]} 9. Bd3 {[%clk 0:02:29.7]} 9... Ne6 {[%clk
0:02:46.7]} 10. Bh4 {[%clk 0:02:28.9]} 10... g6 {[%clk 0:02:46.3]} 11. O-O-O
{[%clk 0:02:18.9]} 11... Ng7 {[%clk 0:02:42.3]} 12. h3 {[%clk 0:02:12.3]} 12...
Bf5 {[%clk 0:02:40.4]} 13. Bxf5 {[%clk 0:02:09.3]} 13... Nxf5 {[%clk 0:02:40.1]}
14. Bxf6 {[%clk 0:02:09.6]} 14... Bxf6 {[%clk 0:02:40]} 15. e4 {[%clk
0:02:08.4]} 15... dxe4 {[%clk 0:02:39.5]} 16. Nxe4 {[%clk 0:02:07.5]} 16... Bg7
{[%clk 0:02:36.2]} 17. Qc5 {[%clk 0:01:50.2]} 17... Qd5 {[%clk 0:02:11.8]} 18.
Rhe1 {[%clk 0:01:33.1]} 18... O-O-O {[%clk 0:02:10.1]} 19. Qxa7 {[%clk
0:01:32.6]} 19... Nxd4 {[%clk 0:02:08.5]} 20. Nfd2 {[%clk 0:00:27.9]} 20... Nb5
{[%clk 0:01:54]} 21. Qa4 {[%clk 0:00:26.9]} 21... Kb8 {[%clk 0:01:44]} 22. Nf3
{[%clk 0:00:15.6]} 22... Qf5 {[%clk 0:01:39.7]} 23. Qc4 {[%clk 0:00:08.7]} 23...
Rhe8 {[%clk 0:01:34.6]} 24. Rxd8+ {[%clk 0:00:08.2]} 24... Rxd8 {[%clk
0:01:34.2]} 25. Ned2 {[%clk 0:00:03.7]} 25... Qf6 {[%clk 0:01:33]} 26. Qb3
{[%clk 0:00:03.1]} 26... Bh6 {[%clk 0:01:31]} 27. Re2 {[%clk 0:00:02.6]} 27...
Qf5 {[%clk 0:01:28.2]} 28. a4 {[%clk 0:00:02.4]} 28... Nd4 {[%clk 0:01:22.3]}
29. Nxd4 {[%clk 0:00:02.7]} 29... Rxd4 {[%clk 0:01:22.2]} 30. Qb6 {[%clk
0:00:02.7]} 30... Rc4+ {[%clk 0:01:19.8]} 0-1

[Event "Early-Titled-Tuesday-Blitz-July-09-2024"]
[Site "Chess.com"]
[Date "2024.07.09"]
[Round "11"]
[White "Chessbard1972"]
[Black "GilbertoHernandezAmura"]
[Result "1-0"]
[WhiteElo "2256"]
[BlackElo "2505"]
[TimeControl "180+1"]
[EndTime "10:05:48 PDT"]
[Termination "Chessbard1972 won by resignation"]

1. d4 {[%clk 0:03:00.9]} 1... Nf6 {[%clk 0:02:57.4]} 2. c4 {[%clk 0:03:01]} 2...
g6 {[%clk 0:02:57.3]} 3. Nf3 {[%clk 0:03:00.4]} 3... Bg7 {[%clk 0:02:57.8]} 4.
g3 {[%clk 0:03:01]} 4... O-O {[%clk 0:02:56.8]} 5. Bg2 {[%clk 0:03:01.9]} 5...
c5 {[%clk 0:02:54.8]} 6. O-O {[%clk 0:03:00.5]} 6... d6 {[%clk 0:02:49.6]} 7.
Nc3 {[%clk 0:02:59.6]} 7... Nc6 {[%clk 0:02:33.4]} 8. d5 {[%clk 0:02:57.9]} 8...
Nb4 {[%clk 0:02:33.6]} 9. e4 {[%clk 0:02:50.7]} 9... Bg4 {[%clk 0:02:33.6]} 10.
h3 {[%clk 0:02:49.4]} 10... Bxf3 {[%clk 0:02:33.7]} 11. Bxf3 {[%clk 0:02:48.8]}
11... Na6 {[%clk 0:02:29.5]} 12. Bg2 {[%clk 0:02:45.5]} 12... Nc7 {[%clk
0:02:28.1]} 13. a4 {[%clk 0:02:45]} 13... a6 {[%clk 0:02:23.5]} 14. a5 {[%clk
0:02:42.7]} 14... Rb8 {[%clk 0:02:22.7]} 15. Na4 {[%clk 0:02:37.3]} 15... Nd7
{[%clk 0:02:23]} 16. Ra3 {[%clk 0:02:27.8]} 16... b5 {[%clk 0:02:21.2]} 17. axb6
{[%clk 0:02:27.8]} 17... Nxb6 {[%clk 0:02:20.9]} 18. Nxb6 {[%clk 0:02:27.4]}
18... Rxb6 {[%clk 0:02:21.4]} 19. b3 {[%clk 0:02:26.1]} 19... Qb8 {[%clk
0:02:12.8]} 20. Qc2 {[%clk 0:02:17.7]} 20... a5 {[%clk 0:01:55.6]} 21. Bd2
{[%clk 0:02:14.8]} 21... a4 {[%clk 0:01:52.8]} 22. bxa4 {[%clk 0:02:05.8]} 22...
Rb2 {[%clk 0:01:52.5]} 23. Qd3 {[%clk 0:02:06]} 23... Qa7 {[%clk 0:01:52.8]} 24.
Bc3 {[%clk 0:02:03.3]} 24... Bxc3 {[%clk 0:01:52.1]} 25. Qxc3 {[%clk 0:02:03.3]}
25... Rfb8 {[%clk 0:01:52.6]} 26. e5 {[%clk 0:02:00.1]} 26... dxe5 {[%clk
0:01:47.6]} 27. Qxe5 {[%clk 0:01:57.8]} 27... Ne8 {[%clk 0:01:44.7]} 28. Re1
{[%clk 0:01:56.3]} 28... Rb1 {[%clk 0:01:45]} 29. Re3 {[%clk 0:01:53.7]} 29...
Nd6 {[%clk 0:01:21.5]} 30. Bf1 {[%clk 0:01:48.6]} 30... R8b7 {[%clk 0:01:13.9]}
31. Rxb1 {[%clk 0:01:37.6]} 31... Rxb1 {[%clk 0:01:13.9]} 32. Qxe7 {[%clk
0:01:31.1]} 32... Qxe7 {[%clk 0:01:14.8]} 33. Rxe7 {[%clk 0:01:30.6]} 33... Nxc4
{[%clk 0:01:15.4]} 34. Kg2 {[%clk 0:01:27.8]} 34... Nb6 {[%clk 0:01:15.6]} 35.
d6 {[%clk 0:01:22.9]} 35... Rd1 {[%clk 0:01:15.4]} 36. a5 {[%clk 0:01:16.5]}
36... Na4 {[%clk 0:01:06.7]} 37. d7 {[%clk 0:01:14.5]} 37... Kg7 {[%clk
0:01:04.6]} 38. Bb5 {[%clk 0:01:12.5]} 38... Nc3 {[%clk 0:01:04.8]} 39. Bc6
{[%clk 0:01:06.8]} 39... Nd5 {[%clk 0:00:56.3]} 40. Re8 {[%clk 0:01:01.3]} 1-0

[Event "Early-Titled-Tuesday-Blitz-July-09-2024"]
[Site "Chess.com"]
[Date "2024.07.09"]
[Round "11"]
[White "santig8"]
[Black "JEHUBNER"]
[Result "1-0"]
[WhiteElo "2258"]
[BlackElo "2011"]
[TimeControl "180+1"]
[EndTime "10:05:55 PDT"]
[Termination "santig8 won by resignation"]

1. d4 {[%clk 0:03:00.6]} 1... Nf6 {[%clk 0:02:58.5]} 2. e3 {[%clk 0:02:58.6]}
2... d5 {[%clk 0:02:58.1]} 3. Bd3 {[%clk 0:02:57.2]} 3... c5 {[%clk 0:02:58.4]}
4. c3 {[%clk 0:02:56.5]} 4... Nc6 {[%clk 0:02:58.8]} 5. f4 {[%clk 0:02:56.5]}
5... e6 {[%clk 0:02:58.7]} 6. Nf3 {[%clk 0:02:56.3]} 6... Be7 {[%clk 0:02:58.1]}
7. O-O {[%clk 0:02:56]} 7... O-O {[%clk 0:02:55.8]} 8. Ne5 {[%clk 0:02:55.4]}
8... Ne4 {[%clk 0:02:51.6]} 9. Nd2 {[%clk 0:02:52.9]} 9... f5 {[%clk 0:02:51.2]}
10. Nxe4 {[%clk 0:02:49.4]} 10... dxe4 {[%clk 0:02:51.1]} 11. Bc4 {[%clk
0:02:48.5]} 11... cxd4 {[%clk 0:02:48.4]} 12. exd4 {[%clk 0:02:49.4]} 12... Nxe5
{[%clk 0:02:30.3]} 13. fxe5 {[%clk 0:02:50.3]} 13... a6 {[%clk 0:02:26.7]} 14.
Qb3 {[%clk 0:02:46.6]} 14... Kh8 {[%clk 0:02:15.6]} 15. Bxe6 {[%clk 0:02:44.2]}
15... Bg5 {[%clk 0:01:50.5]} 16. Bxc8 {[%clk 0:02:40.5]} 16... Rxc8 {[%clk
0:01:50.5]} 17. Qe6 {[%clk 0:02:31.8]} 17... f4 {[%clk 0:01:47.3]} 18. Qg4
{[%clk 0:02:23.2]} 18... e3 {[%clk 0:01:46.9]} 19. d5 {[%clk 0:02:15.1]} 19...
Bh6 {[%clk 0:01:41.7]} 20. d6 {[%clk 0:02:08.3]} 20... Qb6 {[%clk 0:01:42]} 21.
Kh1 {[%clk 0:02:03.9]} 21... Qc5 {[%clk 0:01:32.7]} 22. d7 {[%clk 0:01:58]}
22... Rc6 {[%clk 0:01:22.5]} 23. e6 {[%clk 0:01:47.2]} 23... Qe7 {[%clk
0:01:22.3]} 24. Bxe3 {[%clk 0:01:40.1]} 24... Rxe6 {[%clk 0:01:19.3]} 25. Bxf4
{[%clk 0:01:35.8]} 25... Bxf4 {[%clk 0:01:01.1]} 26. h3 {[%clk 0:01:25.2]} 26...
Ref6 {[%clk 0:00:28.5]} 27. Rae1 {[%clk 0:01:20.1]} 27... Qd8 {[%clk 0:00:27.7]}
28. Re8 {[%clk 0:01:01.3]} 28... Rxe8 {[%clk 0:00:19.9]} 29. dxe8=N {[%clk
0:01:00.5]} 29... Qxe8 {[%clk 0:00:20.1]} 30. Rxf4 {[%clk 0:00:59.4]} 30... Qe1+
{[%clk 0:00:19.7]} 31. Kh2 {[%clk 0:00:59.3]} 31... Qe5 {[%clk 0:00:20.4]} 32.
Qc8+ {[%clk 0:00:58.8]} 1-0

[Event "Early-Titled-Tuesday-Blitz-July-09-2024"]
[Site "Chess.com"]
[Date "2024.07.09"]
[Round "11"]
[White "deribas12345"]
[Black "Flawless_Fighter"]
[Result "0-1"]
[WhiteElo "2629"]
[BlackElo "2778"]
[TimeControl "180+1"]
[EndTime "10:06:07 PDT"]
[Termination "Flawless_Fighter won by resignation"]

1. d4 {[%clk 0:03:00.9]} 1... Nf6 {[%clk 0:02:59.7]} 2. c4 {[%clk 0:03:00.6]}
2... e6 {[%clk 0:02:59.9]} 3. Nc3 {[%clk 0:03:00.7]} 3... d5 {[%clk 0:03:00.8]}
4. cxd5 {[%clk 0:03:00.6]} 4... Nxd5 {[%clk 0:03:01.7]} 5. Nf3 {[%clk
0:02:59.6]} 5... Nxc3 {[%clk 0:03:02.4]} 6. bxc3 {[%clk 0:02:59.5]} 6... c5
{[%clk 0:03:03.3]} 7. e3 {[%clk 0:02:57.9]} 7... b6 {[%clk 0:03:03.6]} 8. Be2
{[%clk 0:02:57.5]} 8... Bb7 {[%clk 0:03:03.9]} 9. O-O {[%clk 0:02:57.8]} 9...
Nd7 {[%clk 0:03:04.5]} 10. a4 {[%clk 0:02:53.8]} 10... Be7 {[%clk 0:03:04.8]}
11. a5 {[%clk 0:02:53.8]} 11... O-O {[%clk 0:03:04]} 12. Ba3 {[%clk 0:02:49.3]}
12... Qc7 {[%clk 0:03:03.9]} 13. Qb3 {[%clk 0:02:35.9]} 13... Rab8 {[%clk
0:03:02.8]} 14. axb6 {[%clk 0:02:33.9]} 14... axb6 {[%clk 0:03:02.7]} 15. Rfb1
{[%clk 0:02:32.7]} 15... Bd5 {[%clk 0:03:00.7]} 16. c4 {[%clk 0:02:29.5]} 16...
Be4 {[%clk 0:03:00.7]} 17. Rd1 {[%clk 0:02:28.3]} 17... Bf6 {[%clk 0:03:00.5]}
18. Bd3 {[%clk 0:02:19.4]} 18... Bxd3 {[%clk 0:02:57.7]} 19. Qxd3 {[%clk
0:02:18.1]} 19... Rfc8 {[%clk 0:02:57.8]} 20. Rac1 {[%clk 0:02:12.3]} 20... cxd4
{[%clk 0:02:57]} 21. exd4 {[%clk 0:02:09.4]} 21... Nf8 {[%clk 0:02:42.3]} 22. h3
{[%clk 0:02:02.3]} 22... Rd8 {[%clk 0:02:39.5]} 23. Qe4 {[%clk 0:02:01.2]} 23...
h6 {[%clk 0:02:31.6]} 24. d5 {[%clk 0:01:57.5]} 24... Qb7 {[%clk 0:02:15.7]} 25.
Rb1 {[%clk 0:01:24.3]} 25... Ng6 {[%clk 0:02:09.2]} 26. Bb2 {[%clk 0:01:18]}
26... Bxb2 {[%clk 0:02:01.5]} 27. Rxb2 {[%clk 0:01:18.3]} 27... Rd6 {[%clk
0:01:58.4]} 28. Rdb1 {[%clk 0:00:37.2]} 28... exd5 {[%clk 0:01:56.3]} 29. cxd5
{[%clk 0:00:37.4]} 29... Rxd5 {[%clk 0:01:42.6]} 30. Rxb6 {[%clk 0:00:35.8]}
30... Rd1+ {[%clk 0:01:25]} 31. Rxd1 {[%clk 0:00:35.8]} 31... Qxe4 {[%clk
0:01:25.4]} 32. Rxb8+ {[%clk 0:00:36]} 32... Kh7 {[%clk 0:01:26.1]} 33. Rbd8
{[%clk 0:00:21.5]} 33... Nf4 {[%clk 0:01:24]} 34. Re1 {[%clk 0:00:20.6]} 34...
Qg6 {[%clk 0:01:17.2]} 35. g3 {[%clk 0:00:20.5]} 35... Nxh3+ {[%clk 0:01:16.8]}
36. Kg2 {[%clk 0:00:20.8]} 36... Nf4+ {[%clk 0:01:15.2]} 37. Kf1 {[%clk
0:00:20]} 37... Ne6 {[%clk 0:01:13.4]} 38. Rd5 {[%clk 0:00:17.6]} 38... Qg4
{[%clk 0:01:10.2]} 39. Ng1 {[%clk 0:00:16.7]} 39... Qc4+ {[%clk 0:01:09.9]} 0-1

[Event "Early-Titled-Tuesday-Blitz-July-09-2024"]
[Site "Chess.com"]
[Date "2024.07.09"]
[Round "11"]
[White "Ninocanina"]
[Black "campochess"]
[Result "0-1"]
[WhiteElo "1919"]
[BlackElo "2240"]
[TimeControl "180+1"]
[EndTime "10:06:08 PDT"]
[Termination "campochess won on time"]

1. d4 {[%clk 0:03:00.9]} 1... Nf6 {[%clk 0:02:58.5]} 2. c4 {[%clk 0:03:00.9]}
2... g6 {[%clk 0:02:57.3]} 3. Nc3 {[%clk 0:03:00.9]} 3... d5 {[%clk 0:02:57.4]}
4. cxd5 {[%clk 0:03:00.4]} 4... Nxd5 {[%clk 0:02:57.3]} 5. e4 {[%clk 0:03:01]}
5... Nxc3 {[%clk 0:02:57.3]} 6. bxc3 {[%clk 0:03:01.9]} 6... Bg7 {[%clk
0:02:57.1]} 7. Bc4 {[%clk 0:02:59.4]} 7... c5 {[%clk 0:02:56.9]} 8. Ne2 {[%clk
0:02:58]} 8... O-O {[%clk 0:02:56.6]} 9. O-O {[%clk 0:02:58.1]} 9... Qc7 {[%clk
0:02:53.1]} 10. Bf4 {[%clk 0:02:49.4]} 10... Qa5 {[%clk 0:02:43.3]} 11. Qb3
{[%clk 0:02:41.9]} 11... Nc6 {[%clk 0:02:41.9]} 12. Rfd1 {[%clk 0:02:23.7]}
12... cxd4 {[%clk 0:02:37.4]} 13. cxd4 {[%clk 0:02:21.5]} 13... Qh5 {[%clk
0:02:36.6]} 14. Ng3 {[%clk 0:02:16.5]} 14... Qh4 {[%clk 0:02:34.7]} 15. Be3
{[%clk 0:02:13.3]} 15... Na5 {[%clk 0:02:34.4]} 16. Qb4 {[%clk 0:02:07.2]} 16...
Nxc4 {[%clk 0:02:34.1]} 17. Qxc4 {[%clk 0:02:07.5]} 17... Bg4 {[%clk 0:02:34]}
18. Rd2 {[%clk 0:02:05]} 18... Rfc8 {[%clk 0:02:33.5]} 19. Qb3 {[%clk 0:02:01]}
19... b6 {[%clk 0:02:27.7]} 20. Re1 {[%clk 0:01:59.7]} 20... Be6 {[%clk
0:02:26.3]} 21. Qa3 {[%clk 0:01:50.1]} 21... Bc4 {[%clk 0:02:14.4]} 22. Rc1
{[%clk 0:01:39.5]} 22... b5 {[%clk 0:02:13]} 23. Qa6 {[%clk 0:01:08.2]} 23...
Qg4 {[%clk 0:02:06.2]} 24. h3 {[%clk 0:01:02.1]} 24... Qd7 {[%clk 0:02:05]} 25.
Rdc2 {[%clk 0:00:56.5]} 25... Rc6 {[%clk 0:02:01.6]} 26. Qa3 {[%clk 0:00:49.1]}
26... Rac8 {[%clk 0:01:56.6]} 27. e5 {[%clk 0:00:17.7]} 27... Qd5 {[%clk
0:01:50.5]} 28. Rc3 {[%clk 0:00:11.6]} 28... Bf8 {[%clk 0:01:43.7]} 29. Qxa7
{[%clk 0:00:07.8]} 29... b4 {[%clk 0:01:39.4]} 30. R3c2 {[%clk 0:00:06.9]} 30...
Ra6 {[%clk 0:01:38.5]} 31. Qxa6 {[%clk 0:00:01.7]} 31... Bxa6 {[%clk 0:01:37.4]}
32. Rxc8 {[%clk 0:00:02.6]} 32... Bxc8 {[%clk 0:01:37.3]} 33. Rxc8 {[%clk
0:00:03.3]} 33... Kg7 {[%clk 0:01:37.5]} 34. Kh2 {[%clk 0:00:02.9]} 34... Qxa2
{[%clk 0:01:36.3]} 35. Ne4 {[%clk 0:00:02.2]} 35... b3 {[%clk 0:01:35.6]} 36. e6
{[%clk 0:00:01.4]} 36... Qa6 {[%clk 0:01:30.4]} 37. Nc5 {[%clk 0:00:01]} 37...
Qxc8 {[%clk 0:01:29.6]} 38. exf7 {[%clk 0:00:01.2]} 38... Kxf7 {[%clk
0:01:29.7]} 39. d5 {[%clk 0:00:01.5]} 39... e5 {[%clk 0:01:28.7]} 40. dxe6+
{[%clk 0:00:01.1]} 40... Kf6 {[%clk 0:01:28]} 41. Bd4+ {[%clk 0:00:01]} 41...
Ke7 {[%clk 0:01:26.6]} 0-1

[Event "Early-Titled-Tuesday-Blitz-July-09-2024"]
[Site "Chess.com"]
[Date "2024.07.09"]
[Round "11"]
[White "Cmorales2001"]
[Black "DFeco"]
[Result "0-1"]
[WhiteElo "2345"]
[BlackElo "2442"]
[TimeControl "180+1"]
[EndTime "10:06:09 PDT"]
[Termination "DFeco won by resignation"]

1. c4 {[%clk 0:02:57.9]} 1... c5 {[%clk 0:02:59.3]} 2. Nf3 {[%clk 0:02:58.3]}
2... Nc6 {[%clk 0:02:58.2]} 3. Nc3 {[%clk 0:02:55.9]} 3... g6 {[%clk 0:02:57.4]}
4. g3 {[%clk 0:02:55.8]} 4... Bg7 {[%clk 0:02:57.6]} 5. Bg2 {[%clk 0:02:55.1]}
5... e5 {[%clk 0:02:58.2]} 6. O-O {[%clk 0:02:54.7]} 6... Nge7 {[%clk
0:02:58.4]} 7. d3 {[%clk 0:02:47.7]} 7... O-O {[%clk 0:02:58.6]} 8. Rb1 {[%clk
0:02:43.9]} 8... Rb8 {[%clk 0:02:55.3]} 9. a3 {[%clk 0:02:43.2]} 9... a6 {[%clk
0:02:54.2]} 10. b4 {[%clk 0:02:43.1]} 10... cxb4 {[%clk 0:02:54.5]} 11. axb4
{[%clk 0:02:43.5]} 11... b5 {[%clk 0:02:55.2]} 12. cxb5 {[%clk 0:02:42.8]} 12...
axb5 {[%clk 0:02:56.1]} 13. Be3 {[%clk 0:02:21.1]} 13... d5 {[%clk 0:02:48.6]}
14. Bc5 {[%clk 0:02:20.8]} 14... Re8 {[%clk 0:02:40.9]} 15. e4 {[%clk
0:02:08.7]} 15... d4 {[%clk 0:02:39.1]} 16. Ne2 {[%clk 0:02:07.9]} 16... f6
{[%clk 0:02:35.4]} 17. Qb3+ {[%clk 0:01:58.9]} 17... Kh8 {[%clk 0:02:33.2]} 18.
Ra1 {[%clk 0:01:54.8]} 18... Qd7 {[%clk 0:02:27]} 19. Nd2 {[%clk 0:01:50.5]}
19... Qe6 {[%clk 0:02:24.9]} 20. f4 {[%clk 0:01:36.8]} 20... Qxb3 {[%clk
0:02:23.5]} 21. Nxb3 {[%clk 0:01:36.3]} 21... Be6 {[%clk 0:02:24.2]} 22. Na5
{[%clk 0:01:35.2]} 22... Nxa5 {[%clk 0:02:06.7]} 23. Rxa5 {[%clk 0:01:33.2]}
23... Nc6 {[%clk 0:02:02.5]} 24. Ra6 {[%clk 0:01:31.4]} 24... Rec8 {[%clk
0:02:00.8]} 25. fxe5 {[%clk 0:00:53.8]} 25... fxe5 {[%clk 0:01:58.3]} 26. h3
{[%clk 0:00:54.2]} 26... Kg8 {[%clk 0:01:50]} 27. Rfa1 {[%clk 0:00:46.7]} 27...
Bf8 {[%clk 0:01:44.5]} 28. Bxf8 {[%clk 0:00:42.9]} 28... Kxf8 {[%clk 0:01:44.1]}
29. Rc1 {[%clk 0:00:42.5]} 29... Bd7 {[%clk 0:01:28.5]} 30. Rc5 {[%clk
0:00:15.9]} 30... Nxb4 {[%clk 0:01:23.5]} 31. Rxc8+ {[%clk 0:00:16.2]} 31...
Bxc8 {[%clk 0:01:22.8]} 32. Rd6 {[%clk 0:00:13.8]} 32... Nxd3 {[%clk 0:01:21.3]}
33. Rd8+ {[%clk 0:00:10.5]} 33... Ke7 {[%clk 0:01:21.5]} 34. Rh8 {[%clk
0:00:11.2]} 34... b4 {[%clk 0:01:21.7]} 35. Rxh7+ {[%clk 0:00:11.4]} 35... Kd6
{[%clk 0:01:21.6]} 36. h4 {[%clk 0:00:10.2]} 36... b3 {[%clk 0:01:21.5]} 37. Rg7
{[%clk 0:00:10.3]} 37... b2 {[%clk 0:01:20.8]} 38. Rxg6+ {[%clk 0:00:11]} 38...
Kc5 {[%clk 0:01:21]} 0-1